Cogmind - Beta 14 @@@ ROGUE MODE // 2024.11.07 @ 10:17:28 Player: OG DANIEL Result: Destroyed by G-47 Trooper with Particle Gun Performance ------------- Evolutions (2) 1000 Regions Visited (3) 600 Robots Destroyed (72) 360 Value Destroyed (2095) 2095 Prototype IDs (2) 40 Alien Tech Used (0) 0 Bonus (128) 128 TOTAL SCORE: 4223 Bonus ------- High Alert Combat Kills 128 Cogmind --------- Core Integrity 0/550 Matter 263/300 Energy 275/275 System Corruption 5% Temperature Cool (27) Movement Walking (120) Location -8/Materials Parts ------- > --- POWER (1) -------- Deuterium Engine > --- PROPULSION (4) --- Aluminum Leg Aluminum Leg Aluminum Leg Aluminum Leg > --- UTILITY (3) ------ Heat Sink Large Storage Unit > --- WEAPON (3) ------- Beam Rifle Assault Rifle Heavy Assault Rifle > --- INVENTORY (15) --- Deuterium Engine Light Nuclear Core Aluminum Leg Aluminum Leg Aluminum Leg Aluminum Leg Aluminum Leg Medium Laser Medium Laser Light EM Pulse Cannon Assault Rifle Light Assault Rifle Peak State ------------ > --- POWER ------------ Deuterium Engine > --- PROPULSION ------- Aluminum Leg Aluminum Leg Aluminum Leg Aluminum Leg > --- UTILITY ---------- Large Storage Unit Compact Matter Pod > --- WEAPON ----------- Small Laser High-powered Shotgun Gauss Rifle > --- INVENTORY -------- Light Ion Engine Deuterium Engine Aluminum Leg Aluminum Leg Aluminum Leg Medium Laser Medium Laser Light EM Pulse Cannon Assault Rifle Assault Rifle Light Assault Rifle Improved Assault Rifle [Rating: 20] Favorites ----------- Power Deuterium Engine Engine Deuterium Engine Power Core Light Nuclear Core Propulsion Aluminum Leg Treads Light Treads Leg Aluminum Leg Utility Large Storage Unit Device Improved Terrain Scanner Storage Large Storage Unit Weapon Assault Rifle Energy Gun Small Laser Energy Cannon Light EM Pulse Cannon Ballistic Gun Assault Rifle Build | -11 -10 -9 -8 ------- Run | Yrd Mat Mat Mat Slots Evolved 4 | . . 2 2 Power . | . . . . Propulsion 2 | . . 2 . Utility 1 | . . . 1 Weapon 1 | . . . 1 Parts Attached 68 | 6 11 9 42 Power 11 | 1 2 2 6 Engine 8 | 1 2 2 3 Core 3 | . . . 3 Reactor . | . . . . Propulsion 27 | 2 4 3 18 Treads 4 | 2 2 . . Leg 23 | . 2 3 18 Wheel . | . . . . Hover . | . . . . Flight . | . . . . Utility 6 | 1 3 . 2 Device 3 | . 2 . 1 Storage 3 | 1 1 . 1 Processor . | . . . . Hackware . | . . . . Protection . | . . . . Artifact . | . . . . Weapon 24 | 2 2 4 16 Energy Gun 8 | . . 1 7 Energy Cannon 2 | . . 1 1 Ballistic Gun 14 | 2 2 2 8 Ballistic Cannon . | . . . . Launcher . | . . . . Special Weapon . | . . . . Impact Weapon . | . . . . Slashing Weapon . | . . . . Piercing Weapon . | . . . . Special Melee Weapon . | . . . . Unidentified Prototypes 2 | . . . 2 Corrupted Parts 1 | . . . 1 System Corruption 5 | . . . 5 Parts Lost 25 | . 2 2 21 Power 3 | . 1 . 2 Propulsion 13 | . 1 1 11 Utility 2 | . . . 2 Weapon 7 | . . 1 6 Highest Loss Streak 5 | . 1 2 5 To Critical Strikes . | . . . . Average Slot Usage (%) 88 | . 88 98 83 Engine 7 | . 9 11 4 Core 1 | . . . 3 Treads 7 | . 25 . . Leg 25 | . 1 42 31 Device 7 | . 8 11 6 Storage 12 | . 13 11 12 Energy Gun 5 | . . 6 8 Ballistic Gun 18 | . 27 15 14 Peak Build Rating 20 | 6 10 15 20 Average Rating 12 | 5 7 13 16 On Entrance 7 | . 6 10 15 Naked Turns . | . . . . Heaviest Build 39 | 12 30 34 39 Greatest Support 40 | 40 40 40 40 Greatest Overweight (x) 6 | . 6 1 3 Average Overweight (x) . | . . . . Largest Inventory Capacity 15 | 8 15 15 15 Average Capacity 14 | 7 13 15 15 Most Carried 15 | 6 15 15 15 Average Carried 11 | 4 8 13 13 Final Capacity 15 | 8 15 15 15 Final Carried 15 | 6 14 15 12 Class Distribution -------------------- 38% | Mutant 31% | Scavenger-Gunner 26% | Scavenger-Mutant Dominant Class ---------------- Mutant | -10/Materials Scavenger-Mutant | -9/Materials Scavenger-Gunner | -8/Materials Resources | -11 -10 -9 -8 ----------- Run | Yrd Mat Mat Mat Matter Collected 1712 | 308 328 208 868 Remotely . | . . . . Salvage Created 2715 | 81 546 274 1814 Parts 169 | 6 42 24 97 Haulers Intercepted . | . . . . Recyclers Shooed 5 | 1 2 2 . Parts Field Recycled . | . . . . Retrieved Matter . | . . . . Parts Self-Destructed . | . . . . Prevented . | . . . . Kills | -11 -10 -9 -8 ------- Run | Yrd Mat Mat Mat Combat Hostiles Destroyed 56 | . 10 10 36 Guns 53 | . 10 9 34 Cannons 1 | . . 1 . AOE 1 | . . . 1 Classes Destroyed 11 | 2 4 3 2 Worker 6 | . 1 1 4 Builder 4 | . 1 2 1 Tunneler 4 | 1 1 . 2 Recycler 2 | 1 1 . . Operator 1 | . . 1 . Watcher 2 | . 2 . . Swarmer 11 | . . 8 3 Grunt 35 | . 10 1 24 Brawler 1 | . . . 1 Sentry 8 | . . 1 7 Hunter 1 | . . . 1 Best Kill Streak 5 | 2 4 4 5 Combat Bots Only 4 | . 4 3 4 Max Kills in Single Turn 3 | 1 1 1 3 Gunslinging . | . . . . Exploded 1 | . . . 1 Melee . | . . . . Uniques/NPCs Destroyed . | . . . . Combat | -11 -10 -9 -8 -------- Run | Yrd Mat Mat Mat Hostile Shots Fired 390 | . 51 69 270 Missed 100 | . 12 24 64 Damage Taken 4011 | . 486 450 3075 Core 667 | . 43 57 567 Absorbed by Shields . | . . . . Core Remaining (%) 89 | 100 82 85 . Volleys Fired 215 | 8 44 42 121 Largest 3 | 2 2 2 3 Hottest 150 | 40 40 96 150 Shots Fired 506 | 16 87 80 323 Gun 491 | 16 87 78 310 Cannon 15 | . . 2 13 Launcher . | . . . . Special . | . . . . Kinetic 352 | 16 87 54 195 Thermal 122 | . . 24 98 Explosive . | . . . . Electromagnetic 32 | . . 2 30 Robot Hit Streak 18 | 9 18 16 16 Robot Miss Streak 4 | 1 2 3 4 Penetration Max 1 | . . . 1 Secondary Targets 9 | . . 2 7 Max Gunslinging Chain 1 | . . 1 1 Shots Hit Robots 339 | 13 66 46 214 Core Hits 154 | 3 29 22 100 Critical Kills 2 | . 1 . 1 Critical Parts Destroyed 3 | . 1 . 2 Critical Strikes 12 | . 2 . 10 Burn 6 | . . . 6 Destroy 5 | . 2 . 3 Corrupt 1 | . . . 1 Melee Attacks . | . . . . Impact . | . . . . Slashing . | . . . . Piercing . | . . . . Sneak Attacks . | . . . . Combat Hostiles . | . . . . Follow-up Attacks . | . . . . Damage Inflicted 4958 | 168 830 528 3432 Guns 4359 | 168 818 490 2883 Cannons 213 | . . 19 194 Explosions 331 | . . . 331 Melee . | . . . . Ramming 55 | . 12 19 24 Kinetic 3036 | 168 818 306 1744 Thermal 1350 | . . 184 1166 Explosive . | . . . . Electromagnetic 517 | . . 19 498 Impact . | . . . . Slashing . | . . . . Piercing . | . . . . Highest Corruption 5 | . . . 5 Average Corruption 5 | . . . 5 Corruption Purged . | . . . . Corruption Blocked . | . . . . Effects 9 | . . . 9 Message Errors 2 | . . . 2 Matter Fused 2 | . . . 2 Heat Flow Errors 1 | . . . 1 Energy Discharges 3 | . . . 3 Weapon Failures 1 | . . . 1 Overload Shots . | . . . . Overflow Damage 44 | . . . 44 Projectiles . | . . . . Explosions 44 | . . . 44 Melee . | . . . . Knockbacks . | . . . . Impact . | . . . . Kinetic . | . . . . Secondary . | . . . . Self-Inflicted Damage 85 | . . . 85 Shots 2 | . . . 2 Rammed 2 | . 2 . . Targets Rammed 11 | . 2 3 6 Kicked 9 | . . 3 6 Crushed . | . . . . Highest Temperature 377 | . 15 107 377 Average Temperature 72 | . 5 49 78 Received Heat Transfer 1848 | . 288 75 1485 Effects 3 | . . . 3 Interference 3 | . . . 3 Siege Activations . | . . . . Robots Corrupted 1 | . . . 1 Combat Hostiles . | . . . . Parts Fried 1 | . . . 1 Impact Corruptions 1 | . . . 1 Robots Melted 1 | . . . 1 Combat Hostiles 1 | . . . 1 Parts Melted 3 | . . 1 2 Heat Transferred 3442 | . . 425 3017 Parts Sabotaged . | . . . . Parts Stolen . | . . . . Parts Stripped . | . . . . Power Chain Reactions 3 | . . . 3 Alert | -11 -10 -9 -8 ------- Run | Yrd Mat Mat Mat Peak Influence 707 | 10 186 389 707 Initial 87 | . 6 63 87 Average 187 | 2 75 199 275 Maximum Alert Level 3 | . . 1 3 Low Security (%) 67 | 100 100 56 48 Level 1 20 | . . 43 25 Level 2 11 | . . . 25 Level 3 . | . . . . Level 4 . | . . . . Level 5 . | . . . . High Security . | . . . . Max Security . | . . . . Squads Dispatched 9 | . 3 1 5 Investigation 3 | . 2 . 1 Extermination . | . . . . Reinforcement 6 | . 1 1 4 Assault . | . . . . Garrison . | . . . . Intercept . | . . . . Searches Triggered . | . . . . Construction Impeded 2 | . . . 2 Haulers Reinforced . | . . . . Active Scanning Responses . | . . . . Cargo Convoy Interrupts . | . . . . Stealth | -11 -10 -9 -8 --------- Run | Yrd Mat Mat Mat Distress Signals 7 | . 3 1 3 Communications Jammed . | . . . . Distress Signals . | . . . . Times Spotted 86 | . 15 17 54 Peak Tracking Total 8 | . 4 8 7 Tactical Retreats 9 | . 2 2 5 Traps | -11 -10 -9 -8 ------- Run | Yrd Mat Mat Mat Traps Triggered 4 | . 3 . 1 Indirectly . | . . . . Trap Hack Attempts . | . . . . Triggered . | . . . . Disarmed . | . . . . Reprogrammed . | . . . . Reused . | . . . . Traps Extracted . | . . . . Installed . | . . . . Triggered . | . . . . Machines | -11 -10 -9 -8 ---------- Run | Yrd Mat Mat Mat Machines Disabled 3 | . . . 3 Max in Single Turn 1 | . . . 1 Machines Repaired . | . . . . Machines Dismantled . | . . . . Machines Sabotaged . | . . . . Overloaded Fab Kills . | . . . . Hacking | -11 -10 -9 -8 --------- Run | Yrd Mat Mat Mat Machines Accessed 3 | . 2 1 . Terminals 3 | . 2 1 . Fabricators . | . . . . Repair Stations . | . . . . Recycling Units . | . . . . Scanalyzers . | . . . . Garrison Access . | . . . . Total Hacks 7 | . 6 1 . Successful 3 | . 2 1 . Failed 4 | . 4 . . Catastrophic . | . . . . Database Lockouts . | . . . . Manual 4 | . 4 . . Terminals 7 | . 6 1 . Fabricators . | . . . . Repair Stations . | . . . . Recycling Units . | . . . . Scanalyzers . | . . . . Garrison Access . | . . . . Terminal Hacks 2 | . 1 1 . Record 1 | . 1 . . Emergency Access Points 1 | . . 1 . Fabricator Hacks . | . . . . Repair Station Hacks . | . . . . Recycling Unit Hacks . | . . . . Scanalyzer . | . . . . Garrison Access Hacks . | . . . . Unauthorized Hacks 1 | . 1 . . Terminals 1 | . 1 . . Botnet 1 | . 1 . . Fabricators . | . . . . Repair Stations . | . . . . Recycling Units . | . . . . Scanalyzers . | . . . . Garrison Access . | . . . . Data Cores Recovered 1 | . . 1 . Used . | . . . . Hacking Detections 2 | . 2 . . Full Trace Events 1 | . 1 . . Feedback Events . | . . . . Feedback Blocked . | . . . . Robot Schematics Acquired . | . . . . Robots Built . | . . . . Authchips . | . . . . Time . | . . . . Total Robot Build Rating . | . . . . Part Schematics Acquired . | . . . . Parts Built . | . . . . Authchips . | . . . . Time . | . . . . Total Part Build Rating . | . . . . Parts Repaired . | . . . . Time . | . . . . Parts Recycled . | . . . . Recycled Matter . | . . . . Retrieved Matter . | . . . . Retrieved Components . | . . . . Parts Scanalyzed . | . . . . Part Schematics Acquired . | . . . . Parts Damaged . | . . . . Bothacking | -11 -10 -9 -8 ------------ Run | Yrd Mat Mat Mat Used RIF Installer . | . . . . Robots Hacked . | . . . . Non-combat . | . . . . Combat . | . . . . Robot Hacks Applied . | . . . . Relay Couplers Released . | . . . . Fabnet Peak Effective % . | . . . . Robots Rewired . | . . . . Allies Hacked . | . . . . Hacks Repelled . | . . . . Allies | -11 -10 -9 -8 -------- Run | Yrd Mat Mat Mat Total Allies . | . . . . Largest Group . | . . . . Highest-Rated Group . | . . . . Highest-Rated Ally . | . . . . Total Orders . | . . . . Ally Attacks . | . . . . Total Damage . | . . . . Kills . | . . . . Allies Corrupted . | . . . . Allies Melted . | . . . . Intel | -11 -10 -9 -8 ------- Run | Yrd Mat Mat Mat Robot Analysis Total . | . . . . Derelict Logs Recovered . | . . . . Drone Launches . | . . . . Drone Recoveries . | . . . . Exploration | -11 -10 -9 -8 ------------- Run | Yrd Mat Mat Mat Turns Passed 2713 | 138 788 589 1198 Spaces Moved 1316 | 64 358 361 533 Core 3 | 2 1 . . Treads 400 | 62 338 . . Legs 913 | . 19 361 533 Wheels . | . . . . Hover . | . . . . Flight . | . . . . Fastest Speed 50 | 50 160 120 120 Average Speed 139 | 156 165 121 132 Slowest Speed 350 | 160 350 190 330 Overloaded Moves . | . . . . Propulsion Burnouts . | . . . . Robots Hopped . | . . . . Cave-ins Triggered . | . . . . Exploration Rate (%) 33 | 4 55 28 45 Regions Visited 3 Branch Regions . Pre-discovered Areas . | . . . . Known Exits Taken . | . . . . Unknown Exits Taken 3 | 1 1 1 . Scrap Searched . | . . . . Spaces Dug . | . . . . Terrain Destroyed 15 | . . . 15 Melee . | . . . . Projectile . | . . . . AOE 15 | . . . 15 Terrain Rammed . | . . . . Walls Destroyed . | . . . . Machines Disabled . | . . . . Actions | -11 -10 -9 -8 --------- Run | Yrd Mat Mat Mat Total 1743 | 83 464 432 764 Wait 98 | . 33 12 53 Move 1313 | 63 357 360 533 Hop . | . . . . Pick Up 22 | 6 12 3 1 Fast Attach 29 | 6 8 2 13 Attach 18 | . 2 3 13 Detach 3 | . 1 1 1 Swap 21 | . 1 4 16 Drop 13 | . 4 2 7 Fire 215 | 8 44 42 121 Melee . | . . . . Ram . | . . . . Kick 9 | . . 3 6 Crush 2 | . 2 . . Escape Stasis . | . . . . Rewire . | . . . . Trap . | . . . . Miscellaneous . | . . . . Route ------- -11/Scrapyard -10/Materials -9/Materials (discovered 2 exits: [*Mat x2]) -8/Materials History --------- Turn | Location | Event 12 | -11/Scrapyard | Discovered new exit (range 14) 139 | -11/Scrapyard | Entered Materials 301 | -10/Materials | Build established: Mutant 747 | -10/Materials | Discovered new exit (range 3) 927 | -10/Materials | Entered another Materials area 927 | -9/Materials | Evolved 2 slots: Propulsion x2 1202 | -9/Materials | Discovered new exit (range 12) 1389 | -9/Materials | Discovered new exit (range 12) 1516 | -9/Materials | Entered another Materials area 1516 | -8/Materials | Evolved 2 slots: Utility x1, Weapon x1 1596 | -8/Materials | Build established: Scavenger-Mutant 1793 | -8/Materials | Lost 5 parts (1p3n1u) 1882 | -8/Materials | Lost 4 parts (2n2w) 1943 | -8/Materials | Core integrity fell below 50% 2164 | -8/Materials | Build established: Scavenger-Gunner 2299 | -8/Materials | Core integrity fell below 20% 2369 | -8/Materials | Lost 3 parts (1n2w) 2485 | -8/Materials | Lost 3 parts (1p2n) 2714 | -8/Materials | Destroyed by G-47 Trooper with Particle Gun Last Messages --------------- 02573_ K-01 Serf collects debris. 02573_ Acquired 17 matter. 02577_ K-01 Serf collects debris. 02588_ System corrupted: Energy discharge (-96). 02600_ K-01 Serf collects debris. 02624_ B-36 Bruiser destroyed. 02627_ Y-45 Defender destroyed. 02628_ Critical hit (Burn: +37). 02633_ G-47 Trooper suffers critical hit (Destroy). 02633_ Destroyed Aluminum Leg. 02646_ G-47 Trooper destroyed. 02652_ Acquired 95 matter. 02654_ System corrupted: Matter fused (-8). 02662_ Triggered Alarm Trap. 02662_ An alarm sounds. 02662_ ALERT: Alarm triggered, dispatching investigation squad. 02680_ W-25 Informer sends out distress signal. 02708_ G-47 Trooper destroyed. Map ----- +----------------------------------------------------+ | ???# #?????????????????????????? | | ???# " ########+#?????????????????????????? | | ???# T ##????? ????????????????????????? | | ???# " T#????? ???????????????????????? | | #### !!##????? """ ??????????????????????? | | ! ! ###???? """ !#?????????????????????? | | #???? """ #?????????????????????? | | #???? ???? #?????????????????????? | | ##"T"#### ########+######??????????????????? | | ##"""#??# ???????????????? | | ! ######??#### #####??????????????????????? | | ### #??????????# #??????????????????????????? | | ??# #??????????# #??????????????????????????? | | ??# #?????######+## #?????????????####?????????? | | ??# #?????# ## #????????????? ?????????? | | ??# #?????# ## ##???????????? ?????????? | | ??# ??????# [=# #???????????? ??????????? | | ??# ??????# """%+ #????????##+#/#####???????? | | ??# ??????# """!# #????????# #???????? | | ??# ??????# """ ## ##????????# !! !#???????? | | ??# ??????######+## ########### !! #???????? | | ??# ???????????#=! + ! #???????? | | ??? #????????# ##+##### # #???????? | | ??? =###*# # # """ #???????? | | ??? *=/# """=g% + """ #???????? | | ????# ! ##### T"@####### = """ #???????? | | ??????###??????????# """ #?????# #???????? | | ???????????????????# #?????##########???????? | | ???????????????????#] #??????????????????????? | | ???????????????????#######???????????????????????? | | | | | | | | | | | | | | | | | | | | | | | | | | | | | | | | | | | | | | | | | +----------------------------------------------------+ Best States ------------- Heat Dissipation 41 Energy Generation 14 Energy Capacity 275 Matter Stores 450 Matter Capacity 450 Sight Range 16 Terrain Scan Range 16 Terrain Scan Density 10 Evasion (%) 55 Recoil Reduction 2 Item Schematics ----------------- None Robot Schematics ------------------ None Fabricated ------------ Nothing Alien Tech Used ----------------- None Achievements -------------- None Challenges ------------ None Game ------ Seed TerrabombLegMinigun Manual? 0 Play Time 00:26:04 Cumulative 12.4 hours Start 2024.11.07 @ 09:54:42 End 2024.11.07 @ 10:17:28 Sessions 1 Manual Loads 0 Difficulty Rogue Special Mode None Game No. 44 Rogue 44 Adventurer 0 Explorer 0 Win Type - Total 0 Types 0/0/0/0/0/0/0/0/0 Lore% 5 Gallery% 16 Achievement% 14 Wizard Run 0 Options --------- Layout 1 ASCII 0 Keyboard 0 Movement Numpad Keybinds 0 Fullscreen 0 Font 20/SmallcapsGlow Map View 50x35 Zoom Use 0% Tactical HUD 1 Map Filters NONE Filters NONE Steam 1 RUN: 388c4103-f8de-4554-98f8-38c8db2fa231